lending/lending_fUSD_20250122
["ID","MTS","AMOUNT","RATE_DAILY","PERIOD"]
[349963380,1737539450769,-1076.69,0.00019989,2]
[349963381,1737539450778,-500.0,0.00019989,2]
[349963382,1737539450788,-500.0,0.00019989,2]
[349963383,1737539450797,-540.04,0.00019989,2]
[349963384,1737539450806,-500.0,0.00019989,2]
[349963385,1737539450815,-842.21,0.00019989,2]
[349963386,1737539450825,-500.0,0.00019989,2]
[349963387,1737539450834,-428.1816931,0.00019989,2]
[349963388,1737539450843,-500.0,0.00019989,2]
[349963389,1737539450852,-1119.08,0.00019989,2]
[349963390,1737539450862,-996.35,0.00019989,2]
[349963391,1737539450871,-500.0,0.00019989,2]
[349963392,1737539450880,-500.0,0.00019989,2]
[349963393,1737539450889,-1171.69,0.00019989,2]
[349963394,1737539450899,-602.97,0.00019989,2]
[349963395,1737539450908,-500.0,0.00019989,2]
[349963396,1737539450918,-4255.43,0.00019989,2]
[349963397,1737539450928,-1387.04,0.00019989,2]
[349963398,1737539450938,-1143.16,0.00019989,2]
[349963399,1737539450949,-500.0,0.00019989,2]
[349963400,1737539450960,-1965.65,0.00019989,2]
[349963401,1737539450971,-500.0,0.00019989,2]
[349963402,1737539450981,-500.0,0.00019989,2]
[349963403,1737539450991,-500.0,0.00019989,2]
[349963404,1737539451001,-500.0,0.00019989,2]
[349963405,1737539451012,-818.07,0.00019989,2]
[349963406,1737539451022,-500.0,0.00019989,2]
[349963407,1737539451031,-1209.13,0.00019989,2]
[349963408,1737539451041,-500.0,0.00019989,2]
[349963409,1737539451050,-500.0,0.00019989,2]
[349963410,1737539451061,-875.21,0.00019989,2]
[349963411,1737539451072,-500.0,0.00019989,2]
[349963412,1737539451083,-500.0,0.00019989,2]
[349963413,1737539451094,-500.0,0.00019989,2]
[349963414,1737539451104,-2793.57,0.00019989,2]
[349963415,1737539451115,-1439.89,0.00019989,2]
[349963416,1737539451125,-500.0,0.00019989,2]
[349963417,1737539451135,-1524.01,0.00019989,2]
[349963418,1737539451145,-1051.9,0.00019989,2]
[349963419,1737539451157,-500.0,0.00019989,2]
[349963420,1737539451167,-500.0,0.00019989,2]
[349963421,1737539451176,-500.0,0.00019989,2]
[349963422,1737539451186,-960.28,0.00019989,2]
[349963423,1737539451196,-548.15,0.00019989,2]
[349963424,1737539451205,-500.0,0.00019989,2]
[349963425,1737539451216,-500.0,0.00019989,2]
[349963426,1737539451227,-755.05,0.00019989,2]
[349963427,1737539451238,-500.0,0.00019989,2]
[349963428,1737539451249,-500.0,0.00019989,2]
[349963429,1737539451261,-500.0,0.00019989,2]
[349963430,1737539451272,-1639.44,0.00019989,2]
[349963431,1737539451282,-612.19028352,0.00019989,2]
[349963432,1737539451292,-2246.81,0.00019989,2]
[349963433,1737539451303,-774185.03534528,0.0001999,2]
[349963434,1737539451314,-500.0,0.0001999,2]
[349963435,1737539451323,-523.68,0.0001999,2]
[349963436,1737539451333,-500.0,0.0001999,2]
[349963437,1737539451344,-500.0,0.0001999,2]
[349963438,1737539451355,-500.0,0.0001999,2]
[349963439,1737539451365,-500.0,0.0001999,2]
[349963440,1737539451374,-500.0,0.0001999,2]
[349963441,1737539451384,-500.0,0.0001999,2]
[349963442,1737539451394,-500.0,0.0001999,2]
[349963443,1737539451405,-500.0,0.0001999,2]
[349963444,1737539451415,-500.0,0.0001999,2]
[349963445,1737539451425,-500.0,0.0001999,2]
[349963446,1737539451435,-500.0,0.0001999,2]
[349963447,1737539451445,-256.16825079,0.0001999,2]
[349963448,1737539451454,-294.82772123,0.0001999,2]
[349963449,1737539451464,-814.47,0.0001999,2]
[349963450,1737539451473,-500.0,0.0001999,2]
[349963451,1737539451482,-500.0,0.0001999,2]
[349963452,1737539451492,-500.0,0.0001999,2]
[349963453,1737539451501,-541.13,0.0001999,2]
[349963454,1737539451511,-500.0,0.0001999,2]
[349963455,1737539451520,-500.0,0.0001999,2]
[349963456,1737539451529,-500.0,0.0001999,2]
[349963457,1737539451538,-386.14541892,0.0001999,2]
[349963458,1737539451547,-500.0,0.0001999,2]
[349963459,1737539451557,-500.0,0.0001999,2]
[349963460,1737539451566,-500.0,0.0001999,2]
[349963461,1737539451576,-501.98,0.0001999,2]
[349963462,1737539451586,-500.0,0.0001999,2]
[349963463,1737539451595,-500.0,0.0001999,2]
[349963464,1737539451605,-166.6,0.0001999,2]
[349963465,1737539451615,-624.98147448,0.0001999,2]
[349963466,1737539451624,-500.0,0.0001999,2]
[349963467,1737539451634,-623.55,0.0001999,2]
[349963468,1737539451643,-500.0,0.0001999,2]
[349963469,1737539451654,-500.0,0.0001999,2]
[349963470,1737539451663,-547.09,0.0001999,2]
[349963471,1737539451672,-500.0,0.0001999,2]
[349963472,1737539451682,-500.0,0.0001999,2]
[349963473,1737539451691,-500.0,0.0001999,2]
[349963474,1737539451701,-500.0,0.0001999,2]
[349963475,1737539451710,-500.0,0.0001999,2]
[349963476,1737539451720,-500.0,0.0001999,2]
[349963477,1737539451729,-831.12,0.0001999,2]
[349963478,1737539451738,-500.0,0.0001999,2]
[349963479,1737539451747,-500.0,0.0001999,2]
[349963480,1737539451757,-364.81074153,0.0001999,2]
[349963481,1737539451767,-500.0,0.0001999,2]
[349963482,1737539451775,-537.72,0.0001999,2]
[349963483,1737539451785,-500.0,0.0001999,2]
[349963484,1737539451795,-574.61,0.0001999,2]
[349963485,1737539451804,-500.0,0.0001999,2]
[349963486,1737539451814,-815.28,0.0001999,2]
[349963487,1737539451823,-500.0,0.0001999,2]
[349963488,1737539451833,-500.0,0.0001999,2]
[349963489,1737539451843,-500.0,0.0001999,2]
[349963490,1737539451852,-500.0,0.0001999,2]
[349963491,1737539451861,-500.0,0.0001999,2]
[349963492,1737539451871,-500.0,0.0001999,2]
[349963493,1737539451880,-500.0,0.0001999,2]
[349963494,1737539451889,-738.84,0.0001999,2]
[349963495,1737539451898,-1035.26,0.0001999,2]
[349963496,1737539451907,-795.1,0.0001999,2]
[349963497,1737539451917,-500.0,0.0001999,2]
[349963498,1737539451927,-586.3,0.0001999,2]
[349963499,1737539451936,-627.59,0.0001999,2]
[349963500,1737539451946,-734.0,0.0001999,2]
[349963501,1737539451956,-500.0,0.0001999,2]
[349963502,1737539451965,-500.0,0.0001999,2]
[349963503,1737539451975,-653.39,0.0001999,2]
[349963504,1737539451984,-500.0,0.0001999,2]
[349963505,1737539451993,-500.0,0.0001999,2]
[349963506,1737539452003,-886.51,0.0001999,2]
[349963507,1737539452012,-500.0,0.0001999,2]
[349963508,1737539452021,-816.46,0.0001999,2]
[349963509,1737539452030,-939.52,0.0001999,2]
[349963510,1737539452039,-572.2,0.0001999,2]
[349963511,1737539452048,-500.0,0.0001999,2]
[349963512,1737539452058,-737.25,0.0001999,2]
[349963513,1737539452068,-536.52,0.0001999,2]
[349963514,1737539452080,-500.0,0.0001999,2]
[349963515,1737539452091,-544.31,0.0001999,2]
[349963516,1737539452100,-500.0,0.0001999,2]
[349963517,1737539452110,-500.0,0.0001999,2]
[349963518,1737539452119,-515.54,0.0001999,2]
[349963519,1737539452129,-500.0,0.0001999,2]
[349963520,1737539452138,-500.0,0.0001999,2]
[349963521,1737539452153,-879.9,0.0001999,2]
[349963522,1737539452162,-500.0,0.0001999,2]
[349963523,1737539452171,-500.0,0.0001999,2]
[349963524,1737539452181,-500.0,0.0001999,2]
[349963525,1737539452190,-500.0,0.0001999,2]
[349963526,1737539452199,-500.0,0.0001999,2]
[349963527,1737539452208,-500.0,0.0001999,2]
[349963528,1737539452218,-500.0,0.0001999,2]
[349963529,1737539452228,-653.55,0.0001999,2]
[349963530,1737539452238,-500.0,0.0001999,2]
[349963531,1737539452248,-500.0,0.0001999,2]
[349963532,1737539452257,-716.12,0.0001999,2]
[349963533,1737539452267,-500.0,0.0001999,2]
[349963534,1737539452276,-500.0,0.0001999,2]
[349963535,1737539452285,-439.11606448,0.0001999,2]
[349963536,1737539452295,-1087.87,0.0001999,2]
[349963537,1737539452425,-500.0,0.0001999,2]
[349963538,1737539452437,-500.0,0.0001999,2]
[349963539,1737539452448,-500.0,0.0001999,2]
[349963540,1737539452458,-500.0,0.0001999,2]
[349963541,1737539452467,-500.0,0.0001999,2]
[349963542,1737539452476,-1135.96,0.0001999,2]
[349963543,1737539452485,-500.0,0.0001999,2]
[349963544,1737539452495,-500.0,0.0001999,2]
[349963545,1737539452505,-526.7,0.0001999,2]
[349963546,1737539452515,-818.59,0.0001999,2]
[349963547,1737539452524,-837.33,0.0001999,2]
[349963548,1737539452534,-500.0,0.0001999,2]
[349963549,1737539452543,-978.34,0.0001999,2]
[349963550,1737539452552,-500.0,0.0001999,2]
[349963551,1737539452562,-500.0,0.0001999,2]
[349963552,1737539452571,-500.0,0.0001999,2]
[349963553,1737539452580,-1075.0,0.0001999,2]
[349963554,1737539452589,-1187.42,0.0001999,2]
[349963555,1737539452598,-500.0,0.0001999,2]
[349963556,1737539452608,-889.93,0.0001999,2]
[349963557,1737539452617,-833.89,0.0001999,2]
[349963558,1737539452627,-500.0,0.0001999,2]
[349963559,1737539452636,-500.0,0.0001999,2]
[349963560,1737539452645,-500.0,0.0001999,2]
[349963561,1737539452655,-223.75000461,0.0001999,2]
[349963562,1737539452664,-500.0,0.0001999,2]
[349963563,1737539452673,-500.0,0.0001999,2]
[349963564,1737539452682,-500.0,0.0001999,2]
[349963565,1737539452691,-896.87,0.0001999,2]
[349963566,1737539452700,-500.0,0.0001999,2]
[349963567,1737539452710,-502.01,0.0001999,2]
[349963568,1737539452719,-954.74,0.0001999,2]
[349963569,1737539452728,-500.0,0.0001999,2]
[349963570,1737539452737,-576.49,0.0001999,2]
[349963571,1737539452746,-500.0,0.0001999,2]
[349963572,1737539452757,-500.0,0.0001999,2]
[349963573,1737539452766,-742.73,0.0001999,2]
[349963574,1737539452775,-500.0,0.0001999,2]
[349963575,1737539452784,-1167.36,0.0001999,2]
[349963576,1737539452794,-500.0,0.0001999,2]
[349963577,1737539452803,-585.55,0.0001999,2]
[349963578,1737539452813,-500.0,0.0001999,2]
[349963579,1737539452822,-500.0,0.0001999,2]
[349963580,1737539452832,-790.13,0.0001999,2]
[349963581,1737539452841,-954.36,0.0001999,2]
[349963582,1737539452850,-500.0,0.0001999,2]
[349963583,1737539452859,-500.0,0.0001999,2]
[349963584,1737539452868,-887.74,0.0001999,2]
[349963585,1737539452878,-500.0,0.0001999,2]
[349963586,1737539452887,-1229.19,0.0001999,2]
[349963587,1737539452897,-678.57,0.0001999,2]
[349963588,1737539452906,-500.0,0.0001999,2]
[349963589,1737539452915,-1111.82,0.0001999,2]
[349963590,1737539452924,-549.3814613,0.0001999,2]
[349963591,1737539452933,-606.41,0.0001999,2]
[349963592,1737539452943,-500.0,0.0001999,2]
[349963593,1737539452952,-550.34,0.0001999,2]
[349963594,1737539452961,-2275.36,0.0001999,2]
[349963595,1737539452970,-500.0,0.0001999,2]
[349963596,1737539452979,-2595.71,0.0001999,2]
[349963597,1737539452989,-500.0,0.0001999,2]
[349963598,1737539452998,-532.62,0.0001999,2]
[349963599,1737539453007,-500.0,0.0001999,2]
[349963600,1737539453017,-500.0,0.0001999,2]
[349963601,1737539453026,-5552.09,0.0001999,2]
[349963602,1737539453035,-2185.17,0.0001999,2]
[349963603,1737539453044,-500.0,0.0001999,2]
[349963604,1737539453053,-666.15,0.0001999,2]
[349963605,1737539453063,-500.0,0.0001999,2]
[349963606,1737539453077,-500.0,0.0001999,2]
[349963607,1737539453086,-9446.35,0.0001999,2]
[349963608,1737539453095,-1133.96,0.0001999,2]
[349963609,1737539453104,-562.24,0.0001999,2]
[349963610,1737539453114,-500.0,0.0001999,2]
[349963611,1737539453123,-757.56,0.0001999,2]
[349963612,1737539453132,-1637.65,0.0001999,2]
[349963613,1737539453142,-500.0,0.0001999,2]
[349963614,1737539453153,-680.6,0.0001999,2]
[349963615,1737539453163,-1232.93,0.0001999,2]
[349963616,1737539453173,-500.0,0.0001999,2]
[349963617,1737539453182,-528.76169656,0.0001999,2]
[349963618,1737539453192,-794.46,0.0001999,2]
[349963619,1737539453201,-828.8,0.0001999,2]
[349963620,1737539453211,-903.63,0.0001999,2]
[349963621,1737539453221,-2101.98,0.0001999,2]
[349963622,1737539453230,-326.52925612,0.0001999,2]
[349963623,1737539453240,-500.0,0.0001999,2]
[349963624,1737539453249,-633.96,0.0001999,2]
[349963625,1737539453258,-595.9,0.0001999,2]
[349963626,1737539453269,-4309.02,0.0001999,2]
[349963627,1737539453278,-2922.04,0.0001999,2]
[349963628,1737539453287,-500.0,0.0001999,2]
[349963629,1737539453297,-500.0,0.0001999,2]
[349963630,1737539453307,-500.0,0.0001999,2]
[349963631,1737539453317,-500.0,0.0001999,2]
[349963632,1737539453326,-1756.62,0.0001999,2]
[349963633,1737539453336,-552.1,0.0001999,2]
[349963634,1737539453345,-500.0,0.0001999,2]
[349963635,1737539453354,-500.0,0.0001999,2]
[349963636,1737539453363,-1177.62,0.0001999,2]
[349963637,1737539453373,-3008.63,0.0001999,2]
[349963638,1737539453382,-1652.13,0.0001999,2]
[349963639,1737539453392,-500.0,0.0001999,2]
[349963640,1737539453401,-506.59,0.0001999,2]
[349963641,1737539453411,-1261.45,0.0001999,2]
[349963642,1737539453420,-500.0,0.0001999,2]
[349963643,1737539453430,-1900.25,0.0001999,2]
[349963644,1737539453439,-4250.42,0.0001999,2]
[349963645,1737539453452,-1112.25,0.0001999,2]
[349963646,1737539453471,-1762.32,0.0001999,2]
[349963647,1737539453487,-500.0,0.0001999,2]
[349963648,1737539453504,-569.17,0.0001999,2]
[349963649,1737539453522,-500.0,0.0001999,2]
[349963650,1737539453538,-500.0,0.0001999,2]
[349963651,1737539453553,-500.0,0.0001999,2]
[349963652,1737539453567,-694.24,0.0001999,2]
[349963653,1737539453582,-1099.05,0.0001999,2]
[349963654,1737539453597,-691.09,0.0001999,2]
[349963655,1737539453614,-1017.16,0.0001999,2]
[349963656,1737539453630,-2699.0,0.0001999,2]
[349963657,1737539453647,-937.05,0.0001999,2]
[349963658,1737539453663,-533.89,0.0001999,2]
[349963659,1737539453678,-560.78,0.0001999,2]
[349963660,1737539453693,-500.0,0.0001999,2]
[349963661,1737539453708,-1260.05,0.0001999,2]
[349963662,1737539453723,-2713.11,0.0001999,2]
[349963663,1737539453735,-500.0,0.0001999,2]
[349963664,1737539453751,-1081.89,0.0001999,2]
[349963665,1737539453764,-500.0,0.0001999,2]
[349963666,1737539453775,-500.0,0.0001999,2]
[349963667,1737539453789,-550.03,0.0001999,2]
[349963668,1737539453804,-2666.23,0.0001999,2]
[349963669,1737539453815,-500.0,0.0001999,2]
[349963670,1737539453828,-500.0,0.0001999,2]
[349963671,1737539453841,-500.0,0.0001999,2]
[349963672,1737539453853,-652.0,0.0001999,2]
[349963673,1737539453865,-2266.95,0.0001999,2]
[349963674,1737539453878,-884.93,0.0001999,2]
[349963675,1737539453891,-672.02,0.0001999,2]
[349963676,1737539453903,-594.55,0.0001999,2]
[349963677,1737539453916,-1269.21,0.0001999,2]
[349963678,1737539453928,-500.0,0.0001999,2]
[349963679,1737539453941,-2597.44,0.0001999,2]
[349963680,1737539453953,-576.65,0.0001999,2]
[349963681,1737539453966,-500.0,0.0001999,2]
[349963682,1737539453979,-500.0,0.0001999,2]
[349963683,1737539453991,-500.0,0.0001999,2]
[349963684,1737539454004,-788.0,0.0001999,2]
[349963685,1737539454016,-500.0,0.0001999,2]
[349963686,1737539454029,-937.58,0.0001999,2]
[349963687,1737539454042,-500.0,0.0001999,2]
[349963688,1737539454054,-618.82,0.0001999,2]
[349963689,1737539454067,-715.49,0.0001999,2]
[349963690,1737539454082,-500.0,0.0001999,2]
[349963691,1737539454094,-500.0,0.00019991,2]
[349963692,1737539454107,-500.0,0.00019991,2]
[349963693,1737539454122,-500.0,0.00019991,2]
[349963694,1737539454135,-1321.14,0.00019991,2]
[349963695,1737539454148,-939.41,0.00019991,2]
[349963696,1737539454161,-973.31,0.00019991,2]
[349963697,1737539454174,-980.35,0.00019991,2]
[349963698,1737539454187,-500.0,0.00019991,2]
[349963699,1737539454199,-500.0,0.00019991,2]
[349963700,1737539454212,-500.0,0.00019991,2]
[349963701,1737539454225,-875.35,0.00019991,2]
[349963702,1737539454238,-500.0,0.00019991,2]
[349963703,1737539454251,-500.0,0.00019991,2]
[349963704,1737539454264,-500.0,0.00019991,2]
[349963705,1737539454277,-500.0,0.00019991,2]
[349963706,1737539454290,-168.57,0.00019993,2]
[349963707,1737539454302,-29160.14537147,0.00019999,2]
[349963708,1737539454315,-500.0,0.00019999,2]
[349963709,1737539454328,-22849.0,0.0002,4]
[349963710,1737539454340,-50000.0,0.0002,8]
[349963711,1737539454354,-2658.1773366,0.0002,2]
[349963712,1737539454367,-10494.0,0.0002,2]
[349963713,1737539454380,-60680.65499141,0.0002,14]
[349963714,1737539454393,-2489.98994664,0.0002,4]
[349963715,1737539454406,-98463.74250549,0.0002,2]
[349963716,1737539454418,-12499.98,0.0002,2]
[349963717,1737539454432,-4899.86,0.0002,2]
[349963718,1737539454444,-151.0,0.0002,2]
[349963719,1737539454457,-151.0,0.0002,2]
[349963720,1737539454470,-151.0,0.0002,2]
[349963721,1737539454483,-304.301275,0.0002,2]
[349963722,1737539454496,-304.301275,0.0002,2]
[349963723,1737539454509,-153.086133,0.0002,2]
[349963724,1737539454522,-999.0,0.0002,2]
[349963725,1737539454535,-250.0,0.0002,2]
[349963726,1737539454548,-250.0,0.0002,2]
[349963727,1737539454562,-202.887859,0.0002,2]
[349963728,1737539454574,-425.8,0.0002,2]
[349963729,1737539454587,-204.15211244,0.00020043,2]
[349963730,1737539454600,-1915.0,0.000201,2]
[349963731,1737539454613,-204.15211244,0.00020114,2]
[349963732,1737539454626,-204.15211244,0.00020186,2]
[349963733,1737539454638,-520.88792304,0.00020194,2]
[349963734,1737539454652,-206.16625035,0.00020233,2]
[349963735,1737539454665,-204.15211244,0.00020257,2]
[349963736,1737539454678,-151.0,0.00020263,2]
[349963737,1737539454689,-151.0,0.00020263,2]
[349963738,1737539454702,-500.0,0.00020263,2]
[349963739,1737539454712,-757.38,0.00020263,2]
[349963740,1737539454721,-500.0,0.00020263,2]
[349963741,1737539454731,-500.0,0.00020263,2]
[349963742,1737539454741,-500.0,0.00020263,2]
[349963743,1737539454750,-500.0,0.00020263,2]
[349963744,1737539454760,-3470.07,0.00020263,2]
[349963745,1737539454770,-924.72,0.00020263,2]
[349963746,1737539454779,-1138.95,0.00020263,2]
[349963747,1737539454789,-818.44,0.00020263,2]
[349963748,1737539454798,-2175.56,0.00020263,2]
[349963749,1737539454808,-500.0,0.00020263,2]
[349963750,1737539455068,-500.0,0.00020263,2]
[349963751,1737539455083,-500.0,0.00020263,2]
[349963752,1737539455094,-500.0,0.00020263,2]
[349963753,1737539455103,-500.0,0.00020263,2]
[349963754,1737539455113,-743.44,0.00020263,2]
[349963755,1737539455122,-1763.14,0.00020263,2]
[349963756,1737539455132,-999.52,0.00020263,2]
[349963757,1737539455141,-500.0,0.00020263,2]
[349963758,1737539455153,-1084.08,0.00020263,2]
[349963759,1737539455162,-500.0,0.00020263,2]
[349963760,1737539455172,-704.096055,0.00020263,2]
[349963761,1737539455182,-1301.57,0.00020263,2]
[349963762,1737539455192,-1132.86,0.00020263,2]
[349963763,1737539455202,-206.23982834,0.00020263,2]
[349963764,1737539455211,-1771.29,0.00020263,2]
[349963765,1737539455221,-500.0,0.00020263,2]
[349963766,1737539455231,-660.07,0.00020263,2]
[349963767,1737539455242,-631.72,0.00020263,2]
[349963768,1737539455251,-941.14,0.00020263,2]
[349963769,1737539455260,-1237.633252,0.00020263,2]
[349963770,1737539455272,-500.0,0.00020263,2]
[349963771,1737539455281,-602.96710998,0.00020263,2]
[349963772,1737539455291,-1458.89,0.00020263,2]
[349963773,1737539455300,-2891.68,0.00020263,2]
[349963774,1737539455311,-2543.68,0.00020263,2]
[349963775,1737539455320,-500.0,0.00020263,2]
[349963776,1737539455330,-847.27,0.00020263,2]
[349963777,1737539455341,-500.0,0.00020263,2]
[349963778,1737539455352,-500.0,0.00020263,2]
[349963779,1737539455361,-809.5,0.00020263,2]
[349963780,1737539455371,-599.51,0.00020263,2]
[349963781,1737539455381,-500.0,0.00020263,2]
[349963782,1737539455390,-1278.86,0.00020263,2]
[349963783,1737539455400,-2625.35,0.00020263,2]
[349963784,1737539455409,-501.8,0.00020263,2]
[349963785,1737539455418,-1090.92,0.00020263,2]
[349963786,1737539455428,-3292.63,0.00020263,2]
[349963787,1737539455437,-1345.08,0.00020263,2]
[349963788,1737539455447,-500.0,0.00020263,2]
[349963789,1737539455457,-1076.69,0.00020263,2]
[349963790,1737539455467,-540.04,0.00020263,2]
[349963791,1737539455477,-500.0,0.00020263,2]
[349963792,1737539455486,-842.21,0.00020263,2]
[349963793,1737539455497,-500.0,0.00020263,2]
[349963794,1737539455507,-1119.08,0.00020263,2]
[349963795,1737539455516,-996.35,0.00020263,2]
[349963796,1737539455526,-500.0,0.00020263,2]
[349963797,1737539455535,-1171.69,0.00020263,2]
[349963798,1737539455545,-602.97,0.00020263,2]
[349963799,1737539455555,-500.0,0.00020263,2]
[349963800,1737539455565,-4255.43,0.00020263,2]
[349963801,1737539455575,-1387.04,0.00020263,2]
[349963802,1737539455585,-1143.16,0.00020263,2]
[349963803,1737539455594,-500.0,0.00020263,2]
[349963804,1737539455605,-1965.65,0.00020263,2]
[349963805,1737539455614,-500.0,0.00020263,2]
[349963806,1737539455624,-500.0,0.00020263,2]
[349963807,1737539455635,-500.0,0.00020263,2]
[349963808,1737539455645,-818.07,0.00020263,2]
[349963809,1737539455655,-500.0,0.00020263,2]
[349963810,1737539455665,-1209.13,0.00020263,2]
[349963811,1737539455675,-500.0,0.00020263,2]
[349963812,1737539455684,-875.21,0.00020263,2]
[349963813,1737539455694,-500.0,0.00020263,2]
[349963814,1737539455704,-2793.57,0.00020263,2]
[349963815,1737539455714,-1439.89,0.00020263,2]
[349963816,1737539455723,-500.0,0.00020263,2]
[349963817,1737539455733,-1524.01,0.00020263,2]
[349963818,1737539455743,-1051.9,0.00020263,2]
[349963819,1737539455753,-500.0,0.00020263,2]
[349963820,1737539455763,-500.0,0.00020263,2]
[349963821,1737539455772,-500.0,0.00020263,2]
[349963822,1737539455782,-960.28,0.00020263,2]
[349963823,1737539455791,-548.15,0.00020263,2]
[349963824,1737539455801,-500.0,0.00020263,2]
[349963825,1737539455811,-500.0,0.00020263,2]
[349963826,1737539455821,-755.05,0.00020263,2]
[349963827,1737539455830,-500.0,0.00020263,2]
[349963828,1737539455840,-500.0,0.00020263,2]
[349963829,1737539455850,-1639.44,0.00020263,2]
[349963830,1737539455859,-2246.81,0.00020263,2]
[349963831,1737539455869,-500.0,0.00020264,2]
[349963832,1737539455879,-523.68,0.00020264,2]
[349963833,1737539455889,-500.0,0.00020264,2]
[349963834,1737539455899,-500.0,0.00020264,2]
[349963835,1737539455911,-500.0,0.00020264,2]
[349963836,1737539455920,-500.0,0.00020264,2]
[349963837,1737539455930,-500.0,0.00020264,2]
[349963838,1737539455940,-500.0,0.00020264,2]
[349963839,1737539455949,-500.0,0.00020264,2]
[349963840,1737539455958,-500.0,0.00020264,2]
[349963841,1737539455967,-500.0,0.00020264,2]
[349963842,1737539455977,-814.47,0.00020264,2]
[349963843,1737539455987,-500.0,0.00020264,2]
[349963844,1737539455997,-500.0,0.00020264,2]
[349963845,1737539456006,-500.0,0.00020264,2]
[349963846,1737539456016,-541.13,0.00020264,2]
[349963847,1737539456026,-500.0,0.00020264,2]
[349963848,1737539456035,-500.0,0.00020264,2]
[349963849,1737539456044,-500.0,0.00020264,2]
[349963850,1737539456053,-500.0,0.00020264,2]
[349963851,1737539456065,-500.0,0.00020264,2]
[349963852,1737539456077,-500.0,0.00020264,2]
[349963853,1737539456086,-501.98,0.00020264,2]
[349963854,1737539456095,-500.0,0.00020264,2]
[349963855,1737539456104,-500.0,0.00020264,2]
[349963856,1737539456115,-623.55,0.00020264,2]
[349963857,1737539456124,-500.0,0.00020264,2]
[349963858,1737539456133,-500.0,0.00020264,2]
[349963859,1737539456143,-547.09,0.00020264,2]
[349963860,1737539456153,-500.0,0.00020264,2]
[349963861,1737539456163,-500.0,0.00020264,2]
[349963862,1737539456174,-500.0,0.00020264,2]
[349963863,1737539456184,-382.81491829,0.00020264,2]
[349963864,1737539456193,-831.12,0.00020264,2]
[349963865,1737539456203,-500.0,0.00020264,2]
[349963866,1737539456212,-500.0,0.00020264,2]
[349963867,1737539456222,-151.0,0.00020264,2]
[349963868,1737539456231,-537.72,0.00020264,2]
[349963869,1737539456241,-500.0,0.00020264,2]
[349963870,1737539456250,-574.61,0.00020264,2]
[349963871,1737539456259,-500.0,0.00020264,2]
[349963872,1737539456269,-815.28,0.00020264,2]
[349963873,1737539456278,-500.0,0.00020264,2]
[349963874,1737539456288,-500.0,0.00020264,2]
[349963875,1737539456299,-500.0,0.00020264,2]
[349963876,1737539456308,-500.0,0.00020264,2]
[349963877,1737539456318,-500.0,0.00020264,2]
[349963878,1737539456327,-504.74722128,0.00020264,2]
[349963879,1737539456336,-500.0,0.00020264,2]